bitfinex/quotes_SOLUSD_20250722
["timestamp","ask_amount","ask_price","bid_price","bid_amount"]
[1753158226522,37.06,198.5,198.45,10.91604485]
[1753158227042,10.91604485,198.47,198.41,10.91604485]
[1753158227240,47.97604485,198.46,198.4,10.91604485]
[1753158227440,37.06,198.46,198.41,10.91604485]
[1753158228054,37.06,198.46,198.41,11.58604485]
[1753158228514,9.99999999,198.6,198.39,5.07057664]
[1753158228515,11.58604485,198.53,198.45,10.91604485]
[1753158228720,37.06,198.52,198.51,10.91604485]
[1753158228921,37.06,198.53,198.51,10.91604485]
[1753158229117,37.06,198.56,198.52,10.91604485]
[1753158229342,37.06,198.56,198.53,10.91604485]
[1753158230234,37.06,198.56,198.47,12.59614149]
[1753158230447,37.73,198.56,198.51,10.91604485]
[1753158231042,11.58604485,198.55,198.49,10.91604485]
[1753158231227,0.67,198.55,198.5,10.91604485]
[1753158231431,42.09626857,198.56,198.5,10.91604485]
[1753158231660,53.01231342,198.56,198.5,10.91604485]
[1753158232232,16.78468397,198.55,198.47,5.70849771]
[1753158232430,16.78468397,198.55,198.39,50.4357664]
[1753158232431,27.70072882,198.48,198.41,10.91604485]
[1753158232659,27.70072882,198.45,198.39,15.986601]
[1753158232831,37.04,198.44,198.39,15.986601]
[1753158233035,37.04,198.44,198.4,11.58604485]
[1753158233245,37.04,198.44,198.39,5.07055615]
[1753158233246,0.67,198.43,198.39,0.03]
[1753158233426,10.91604485,198.41,198.39,0.03]
[1753158233760,47.95604485,198.4,198.39,0.03]
[1753158233934,37.04,198.4,198.39,0.03]
[1753158234329,78.3,198.51,198.39,0.7]
[1753158234330,37.04,198.42,198.39,0.7]
[1753158234529,37.04,198.42,198.39,0.03]
[1753158234947,10.91604485,198.46,198.4,11.58604485]
[1753158235134,37.04,198.45,198.39,10.94604485]
[1753158235330,16.78468397,198.49,198.41,10.91604485]
[1753158235664,37.04,198.48,198.44,10.91604485]
[1753158236018,10.91604485,198.52,198.46,10.91604485]
[1753158236263,37.04,198.49,198.45,10.91604485]
[1753158236559,37.04,198.49,198.44,10.91604485]
[1753158236762,10.91604485,198.52,198.46,10.91604485]
[1753158236961,37.04,198.53,198.49,10.91604485]
[1753158237262,16.78468397,198.52,198.48,10.91604485]
[1753158238060,10.91604485,198.5,198.45,0.67]
[1753158238380,10.91604485,198.5,198.45,5.70902443]
[1753158238656,10.91604485,198.5,198.46,0.67]
[1753158238839,10.91604485,198.5,198.47,0.67]
[1753158239050,16.78468397,198.52,198.48,0.67]
[1753158239051,10.91604485,198.51,198.48,0.67]
[1753158239439,16.78468397,198.52,198.48,0.67]
[1753158239751,10.91604485,198.52,198.49,0.67]
[1753158239954,6.0363,198.57,198.45,5.03902443]
[1753158239955,16.78468397,198.54,198.5,0.67]
[1753158240134,10.91604485,198.57,198.51,0.67]
[1753158240330,16.78468397,198.51,198.44,0.67]
[1753158240639,16.78468397,198.44,198.39,0.03]
[1753158240841,26.0,198.49,198.41,10.91604485]
[1753158241026,26.0,198.49,198.39,17.67201824]
[1753158241027,10.91604485,198.5,198.43,10.91604485]
[1753158241232,10.91604485,198.48,198.44,0.67]
[1753158241544,10.91604485,198.5,198.44,0.67]
[1753158241732,16.78468397,198.46,198.44,0.67]
[1753158241933,10.91604485,198.47,198.42,26.0]
[1753158242133,10.91604485,198.5,198.43,11.58604485]
[1753158242461,37.04,198.51,198.46,5.03879875]
[1753158242657,16.78468397,198.5,198.47,0.67]
[1753158242846,10.91604485,198.49,198.44,5.03927358]
[1753158243044,10.91604485,198.49,198.45,0.67]
[1753158243240,37.04,198.51,198.45,0.67]
[1753158243241,47.95604485,198.51,198.46,0.67]
[1753158243436,47.95604485,198.51,198.47,0.67]
[1753158243670,31.03649841,198.56,198.48,26.67]
[1753158243671,37.04,198.56,198.48,26.67]
[1753158243969,10.91604485,198.54,198.48,26.67]
[1753158244183,10.91604485,198.5,198.45,7.0018]
[1753158244396,10.91604485,198.49,198.46,0.67]
[1753158244684,10.91604485,198.53,198.46,16.62476892]
[1753158244901,10.91604485,198.53,198.47,0.67]
[1753158245078,10.91604485,198.52,198.47,0.67]
[1753158245487,10.91604485,198.52,198.48,0.67]
[1753158245668,10.91604485,198.52,198.49,0.67]
[1753158246266,10.91604485,198.53,198.49,26.0]
[1753158246591,10.91604485,198.55,198.5,5.70759032]
[1753158246794,10.91604485,198.55,198.51,0.67]
[1753158247099,0.06,198.57,198.52,0.67]
[1753158247305,0.06,198.57,198.53,0.67]
[1753158247590,0.06,198.57,198.54,0.67]
[1753158247798,0.06,198.57,198.55,0.67]
[1753158248097,10.91604485,198.56,198.52,0.66]
[1753158248394,0.06,198.57,198.53,0.66]
[1753158248571,0.06,198.57,198.54,10.91604485]
[1753158248765,0.06,198.57,198.55,0.66]
[1753158249069,10.97604485,198.57,198.53,26.0]
[1753158249269,0.06,198.57,198.53,26.0]
[1753158249468,0.06,198.57,198.56,26.0]
[1753158250370,0.06,198.57,198.55,5.03651473]
[1753158250975,0.06,198.57,198.55,5.69651473]
[1753158251693,0.06,198.57,198.53,31.03678029]
[1753158251895,0.06,198.57,198.53,31.69678029]
[1753158252100,10.91604485,198.55,198.52,26.0]
[1753158252394,0.7,198.55,198.5,5.03778337]
[1753158252571,10.91604485,198.53,198.5,5.03778337]
[1753158252913,10.91604485,198.54,198.51,0.66]
[1753158254290,10.91604485,198.54,198.51,5.69745087]
[1753158255294,10.91604485,198.54,198.51,5.03745087]
[1753158255797,0.06,198.57,198.52,0.66]
[1753158255996,0.06,198.57,198.56,11.05820642]
[1753158256181,0.06,198.57,198.56,5.83842264]
[1753158256380,0.06,198.57,198.56,16.75446749]
[1753158257082,0.06,198.57,198.55,10.91604485]
[1753158257271,0.06,198.57,198.54,63.02]
[1753158257470,0.06,198.57,198.55,26.0]
[1753158257676,0.06,198.57,198.53,5.03697573]
[1753158258013,10.91604485,198.54,198.47,0.66]
[1753158258175,10.91604485,198.53,198.48,5.03829101]
[1753158258514,0.06,198.57,198.52,10.91604485]
[1753158258716,0.06,198.57,198.53,11.05820642]
[1753158259106,0.06,198.57,198.53,0.66]
[1753158259411,10.91604485,198.54,198.48,5.03829101]
[1753158259609,10.91604485,198.52,198.47,5.03849556]
[1753158259791,10.91604485,198.5,198.46,37.02]
[1753158259994,10.91604485,198.51,198.47,0.66]
[1753158260211,10.91604485,198.52,198.48,5.03829101]
[1753158260513,10.91604485,198.51,198.48,5.03829101]
[1753158260700,37.08,198.57,198.48,5.03829101]
[1753158260701,10.91604485,198.52,198.48,5.03829101]
[1753158260907,10.91604485,198.55,198.5,10.91604485]
[1753158261087,10.91604485,198.56,198.51,0.66]
[1753158261484,10.91604485,198.56,198.52,0.66]
[1753158261712,0.06,198.57,198.53,11.57604485]
[1753158261903,10.91604485,198.55,198.52,26.0]
[1753158262214,10.91604485,198.55,198.53,26.0]
[1753158262393,0.06,198.57,198.52,36.91604485]
[1753158262593,10.97604485,198.57,198.53,0.66]
[1753158262890,10.91604485,198.55,198.5,31.69778337]
[1753158263428,10.91604485,198.53,198.47,47.93604485]
[1753158263714,10.91604485,198.51,198.46,0.66]
[1753158264020,10.91604485,198.51,198.48,26.0]
[1753158264218,10.91604485,198.5,198.46,0.66]
[1753158264420,10.91604485,198.51,198.46,0.66]
[1753158264589,10.91604485,198.51,198.47,0.66]
[1753158265603,10.91604485,198.51,198.48,5.03829101]
[1753158265804,10.91604485,198.51,198.48,5.69829101]
[1753158266113,10.91604485,198.51,198.48,0.66]
[1753158266297,21.82120953,198.55,198.45,0.14216157]
[1753158266298,10.91604485,198.5,198.45,0.14216157]
[1753158266500,10.91604485,198.5,198.46,26.0]
[1753158266692,10.91604485,198.51,198.47,0.66]
[1753158267101,22.52132933,198.55,198.47,0.66]
[1753158267102,10.91604485,198.5,198.47,0.66]
[1753158267311,10.91604485,198.48,198.46,26.0]
[1753158267497,10.91604485,198.47,198.4,0.03]
[1753158267702,0.7,198.48,198.41,5.03986294]
[1753158267703,10.91604485,198.45,198.41,5.03986294]
[1753158268213,10.91604485,198.44,198.4,5.07029906]
[1753158268412,42.05805613,198.49,198.42,26.0]
[1753158268413,10.91604485,198.46,198.42,26.0]
[1753158268801,10.91604485,198.47,198.43,0.66]
[1753158269001,10.91604485,198.48,198.43,26.66]
[1753158269191,7.31045151,198.47,198.44,26.0]
[1753158269617,7.31045151,198.49,198.45,5.03905265]
[1753158269820,7.31045151,198.49,198.46,0.66]
[1753158270315,7.31045151,198.54,198.48,33.31045151]
[1753158270528,7.37045151,198.57,198.51,7.31045151]
[1753158270716,16.84468397,198.57,198.52,7.31045151]
[1753158271020,7.31045151,198.55,198.49,26.66]
[1753158271316,7.31045151,198.52,198.49,26.0]
[1753158271499,7.31045151,198.5,198.46,0.16748401]
[1753158271700,7.31045151,198.49,198.46,5.20626787]
[1753158272210,7.31045151,198.47,198.46,0.16748401]
[1753158272408,24.09513548,198.47,198.46,0.16748401]
[1753158272602,24.79513548,198.47,198.46,0.16748401]
[1753158272924,7.31045151,198.47,198.46,0.16748401]
[1753158273227,0.7,198.53,198.46,0.16748401]
[1753158273425,7.31045151,198.49,198.46,0.16748401]
[1753158273642,7.31045151,198.49,198.46,0.82748401]
[1753158273816,7.31045151,198.5,198.46,0.82748401]
[1753158274610,7.31045151,198.5,198.46,5.86628276]
[1753158274806,37.02,198.53,198.48,7.31045151]
[1753158275031,0.06,198.57,198.49,33.97045151]
[1753158275337,0.06,198.57,198.5,10.87891662]
[1753158275338,10.87891662,198.56,198.5,10.87891662]
[1753158275851,0.06,198.57,198.52,15.91619246]
[1753158276433,0.06,198.57,198.53,11.53891662]
[1753158276831,10.93891662,198.57,198.51,10.87891662]
[1753158277136,10.87891662,198.56,198.51,26.0]
[1753158277634,10.87891662,198.56,198.48,182.52]
[1753158277635,21.82226967,198.51,198.46,0.16748401]
[1753158277932,27.66360059,198.47,198.46,0.16748401]
[1753158278131,16.78468397,198.43,198.4,0.03]
[1753158278336,27.66360059,198.41,198.4,0.03]
[1753158278521,27.80576216,198.41,198.4,1e-08]
[1753158278838,27.80576216,198.41,198.36,0.03]
[1753158278839,16.78468397,198.37,198.36,0.03]
[1753158279010,27.66360059,198.37,198.36,0.03]
[1753158279211,28.46576216,198.37,198.36,1e-08]
[1753158279420,28.46576216,198.37,198.32,0.03]
[1753158279627,28.46576216,198.37,198.28,0.2]
[1753158279628,0.14216157,198.31,198.28,0.2]
[1753158279827,27.66360059,198.29,198.28,0.2]
[1753158280031,37.02,198.3,198.22,0.03]
[1753158280032,42.78468397,198.27,198.22,0.03]
[1753158280236,27.66360059,198.24,198.22,0.03]
[1753158280612,37.02,198.25,198.22,0.03]
[1753158280613,47.89891662,198.25,198.22,0.03]
[1753158281017,37.02,198.25,198.22,0.03]
[1753158281217,47.89891662,198.25,198.22,0.03]
[1753158282515,27.66360059,198.24,198.22,0.03]
[1753158282717,28.32360059,198.24,198.22,0.03]
[1753158283737,27.66360059,198.24,198.22,0.03]
[1753158284034,37.02,198.25,198.22,0.03]
[1753158284235,37.04,198.25,198.23,0.73]
[1753158284439,47.91891662,198.29,198.24,0.7]
[1753158284633,10.87891662,198.28,198.23,0.03]
[1753158284838,10.87891662,198.26,198.23,0.03]
[1753158285229,37.04,198.29,198.23,0.03]
[1753158285424,37.04,198.29,198.23,0.73]
[1753158285616,10.87891662,198.28,198.23,0.73]
[1753158285821,10.87891662,198.27,198.23,0.73]
[1753158286024,37.04,198.29,198.23,0.73]
[1753158286331,10.87891662,198.25,198.23,0.03]
[1753158286639,37.04,198.25,198.23,0.03]
[1753158286834,10.87891662,198.24,198.23,0.03]
[1753158288220,28.32360059,198.24,198.23,0.03]
[1753158288836,33.36799122,198.24,198.23,0.03]
[1753158289054,28.32360059,198.24,198.23,0.03]
[1753158289351,27.66360059,198.24,198.23,0.03]
[1753158289554,33.36799122,198.24,198.23,0.03]
[1753158289754,16.92684554,198.23,198.22,0.03]
[1753158290051,16.78468397,198.18,198.09,0.7]
[1753158290347,10.87891662,198.15,198.09,0.7]
[1753158290556,37.04,198.14,198.09,0.7]
[1753158290731,37.7,198.14,198.06,5.04897505]
[1753158290933,10.87891662,198.09,198.03,5.24951218]
[1753158291138,10.87891662,198.07,198.03,0.2]
[1753158291446,37.04,198.06,198.03,0.2]
[1753158291946,10.87891662,198.04,198.03,0.2]
[1753158292140,10.87891662,198.05,198.03,0.2]
[1753158292641,64.72360059,198.04,198.03,0.2]
[1753158292953,64.86576216,198.09,198.03,5.94973993]
[1753158293134,10.87891662,198.08,198.03,0.9]
[1753158293550,16.78468397,198.1,198.04,0.7]
[1753158293763,12.61407666,198.2,198.04,0.7]
[1753158293764,37.06,198.13,198.06,26.0]
[1753158294056,10.87891662,198.12,198.07,5.04872014]
[1753158294256,27.66360059,198.13,198.08,0.7]
[1753158294457,10.87891662,198.09,198.06,26.0]
[1753158294756,27.66360059,198.07,198.03,0.2]
[1753158294957,16.78468397,198.07,198.03,0.2]
[1753158295270,0.66,198.08,198.03,0.2]
[1753158295271,27.66360059,198.04,198.03,0.2]
[1753158295458,65.38360059,198.04,198.03,0.2]
[1753158295646,65.52576216,198.04,198.03,0.2]
[1753158295849,65.38360059,198.04,198.03,0.2]
[1753158296047,70.57524711,198.04,198.03,0.2]
[1753158296242,64.74360059,198.04,198.03,0.2]
[1753158296450,0.66,198.07,198.03,0.2]
[1753158296664,16.78468397,198.05,198.03,0.2]
[1753158296958,10.87891662,198.06,198.03,0.2]
[1753158297150,10.87891662,198.05,198.03,0.2]
[1753158297351,27.66360059,198.04,198.03,0.2]
[1753158297952,28.32360059,198.04,198.03,0.2]
[1753158298155,32.71308554,198.04,198.03,0.2]
[1753158298458,28.32360059,198.04,198.03,0.2]
[1753158298660,33.37308554,198.04,198.03,0.2]
[1753158298962,27.66360059,198.04,198.03,0.2]
[1753158299138,33.37308554,198.04,198.03,0.2]
[1753158299338,59.37308554,198.04,198.03,0.2]
[1753158300248,64.76360059,198.04,198.03,0.2]
[1753158300561,53.88468397,198.04,198.03,0.2]
[1753158300763,64.76360059,198.04,198.03,0.2]
[1753158300957,37.1,198.04,198.03,0.2]
[1753158301164,10.87891662,198.04,198.03,0.2]
[1753158301543,11.53891662,198.04,198.03,0.2]
[1753158302949,10.87891662,198.04,198.03,0.2]
[1753158303146,16.58840157,198.04,198.03,0.2]
[1753158303963,47.97891662,198.04,198.03,0.2]
[1753158304170,47.97891662,198.05,198.03,0.2]
[1753158304356,10.87891662,198.04,198.03,0.2]
[1753158304559,28.32360059,198.04,198.03,0.2]
[1753158305169,16.78468397,198.04,198.03,0.2]
[1753158305469,28.32360059,198.04,198.03,0.2]
[1753158305651,17.44468397,198.04,198.03,0.2]
[1753158305850,28.32360059,198.04,198.03,0.2]
[1753158306272,33.37308554,198.04,198.03,0.2]
[1753158306471,33.51524711,198.04,198.03,0.2]
[1753158307271,16.78468397,198.04,198.03,0.2]
[1753158307568,10.87891662,198.05,198.03,5.24973558]
[1753158307773,47.99891662,198.07,198.04,0.7]
[1753158308081,10.87891662,198.11,198.05,37.57891662]
[1753158308254,6.1225,198.21,198.07,15.92763676]
[1753158308450,10.87891662,198.14,198.08,11.55891662]
[1753158308682,10.87891662,198.13,198.09,0.68]
[1753158308849,10.87891662,198.1,198.07,5.04872014]
[1753158309257,10.87891662,198.09,198.07,5.04872014]
[1753158309566,10.87891662,198.09,198.07,5.72872014]
[1753158309955,10.87891662,198.11,198.08,0.68]
[1753158310273,47.99891662,198.13,198.09,0.68]
[1753158310481,10.87891662,198.1,198.07,5.04872014]
[1753158310672,10.87891662,198.1,198.07,5.72872014]
[1753158310848,10.87891662,198.1,198.07,5.04872014]
[1753158311053,10.87891662,198.1,198.07,5.72872014]
[1753158311270,10.87891662,198.12,198.08,0.68]
[1753158311463,10.87891662,198.12,198.09,0.68]
[1753158311779,0.72,198.19,198.1,26.0]
[1753158311955,10.87891662,198.17,198.11,11.55891662]
[1753158312157,10.87891662,198.18,198.12,15.92636261]
[1753158312454,10.87891662,198.13,198.09,0.68]
[1753158312774,10.87891662,198.14,198.09,0.68]
[1753158312978,10.87891662,198.14,198.1,0.68]
[1753158313159,10.87891662,198.15,198.11,0.68]
[1753158313767,10.87891662,198.14,198.11,0.68]
[1753158313966,17.50468397,198.18,198.08,26.68]
[1753158314160,10.87891662,198.13,198.08,26.68]
[1753158314375,10.87891662,198.13,198.08,31.72845678]
[1753158314557,16.78468397,198.18,198.09,0.68]
[1753158314895,5.04593168,198.18,198.08,0.68]
[1753158315082,10.87891662,198.12,198.08,0.68]
[1753158315380,10.87891662,198.12,198.09,0.68]
[1753158315680,10.87891662,198.13,198.1,0.68]
[1753158315857,10.87891662,198.12,198.07,0.68]
[1753158316257,10.87891662,198.11,198.07,0.68]
[1753158316668,5.04723247,198.13,198.07,26.0]
[1753158316877,10.87891662,198.1,198.07,26.0]
[1753158317075,16.78468397,198.1,198.03,0.2]
[1753158317278,10.87891662,198.07,198.03,0.2]
[1753158317479,10.87891662,198.06,198.03,0.2]
[1753158317786,16.78468397,198.16,198.05,10.87891662]
[1753158317976,10.87891662,198.13,198.07,10.87891662]
[1753158318285,10.87891662,198.13,198.08,5.72846526]
[1753158318586,10.87891662,198.13,198.09,0.68]
[1753158318996,37.08,198.15,198.08,5.04846526]
[1753158318997,10.87891662,198.14,198.08,17.66962842]
[1753158319168,10.87891662,198.15,198.1,0.68]
[1753158319595,10.87891662,198.15,198.11,0.68]
[1753158319766,37.08,198.17,198.11,0.68]
[1753158320095,10.87891662,198.15,198.11,0.68]
[1753158320288,10.87891662,198.13,198.08,5.04846526]
[1753158320469,10.87891662,198.13,198.08,5.72846526]
[1753158320789,5.04668181,198.15,198.07,5.04859903]
[1753158321090,10.87891662,198.13,198.07,16.60751565]
[1753158321587,0.72,198.2,198.12,26.0]
[1753158321779,10.87891662,198.14,198.1,26.68]
[1753158321982,10.87891662,198.15,198.11,0.68]
[1753158322386,10.87891662,198.15,198.1,31.04780199]
[1753158322587,10.87891662,198.15,198.11,0.68]
[1753158322788,10.87891662,198.16,198.12,0.68]
[1753158323177,10.87891662,198.17,198.13,0.68]
[1753158323382,10.87891662,198.15,198.1,31.04780199]
[1753158323698,10.87891662,198.16,198.11,0.68]
[1753158324190,10.87891662,198.16,198.12,0.68]
[1753158324388,10.87891662,198.17,198.13,0.68]
[1753158324798,10.87891662,198.16,198.13,0.68]
[1753158325186,37.08,198.21,198.14,0.68]
[1753158325494,7.33202816,198.19,198.14,0.68]
[1753158325688,7.33202816,198.19,198.15,0.68]
[1753158325873,2.0,198.2,198.13,7.33202816]
[1753158325874,2.0,198.2,198.16,8.01202816]
[1753158326079,2.0,198.2,198.17,0.68]
[1753158326377,2.0,198.2,198.18,0.68]
[1753158326587,2.0,198.2,198.19,5.04566325]
[1753158327405,2.0,198.2,198.18,5.04589973]
[1753158327792,2.0,198.2,198.18,5.72589973]
[1753158328004,7.33202816,198.22,198.18,5.72589973]
[1753158328005,0.06,198.27,198.22,26.0]
[1753158328210,0.06,198.27,198.25,7.33202816]
[1753158328504,7.33202816,198.26,198.21,5.0450546]
[1753158328677,7.33202816,198.23,198.18,0.68]
[1753158329207,0.06,198.27,198.22,7.33202816]
[1753158329380,0.06,198.27,198.25,33.33202816]
[1753158329581,7.39202816,198.27,198.23,0.68]
[1753158329877,7.33202816,198.26,198.2,7.33202816]
[1753158330080,0.06,198.27,198.19,0.68]
[1753158330081,7.33202816,198.23,198.19,0.68]
[1753158330294,7.33202816,198.23,198.18,5.04591785]
[1753158330483,7.33202816,198.23,198.19,0.68]
[1753158330880,7.33202816,198.24,198.2,0.68]
[1753158331082,0.06,198.27,198.22,7.33202816]
[1753158331305,0.06,198.27,198.21,26.68]
[1753158331306,7.39202816,198.27,198.23,26.0]
[1753158331480,7.39202816,198.25,198.21,0.68]
[1753158331685,7.39202816,198.25,198.22,26.0]
[1753158331686,0.06,198.25,198.22,26.0]
[1753158331883,0.06,198.25,198.23,0.68]
[1753158332213,0.06,198.25,198.24,7.33202816]
[1753158332416,0.06,198.25,198.24,8.01202816]
[1753158332584,0.06,198.25,198.24,13.05641879]
[1753158332778,0.06,198.25,198.24,5.04439063]
[1753158333004,0.06,198.25,198.22,26.0]
[1753158333208,7.39202816,198.25,198.22,5.04486487]
[1753158333386,7.39202816,198.25,198.21,37.08]
[1753158333752,0.06,198.25,198.21,37.76]
[1753158334045,7.33202816,198.23,198.19,26.0]
[1753158334238,7.33202816,198.23,198.18,5.04591785]
[1753158334549,7.33202816,198.22,198.19,0.68]
[1753158334736,7.33202816,198.23,198.19,0.68]
[1753158335452,7.39202816,198.25,198.2,0.68]
[1753158335747,0.06,198.25,198.21,0.68]
[1753158335949,0.06,198.25,198.22,0.68]
[1753158336251,7.39202816,198.25,198.22,26.0]
[1753158336542,7.39202816,198.25,198.23,5.0446451]
[1753158336719,7.39202816,198.25,198.2,0.68]
[1753158336920,7.39202816,198.25,198.21,0.68]
[1753158337114,7.33202816,198.24,198.2,5.04540867]
[1753158337530,7.33202816,198.24,198.2,5.72540867]
[1753158337928,7.33202816,198.22,198.18,26.0]
[1753158338328,7.33202816,198.22,198.16,0.68]
[1753158338513,7.33202816,198.21,198.16,0.68]
[1753158338717,7.33202816,198.21,198.17,5.04617247]
[1753158338946,7.33202816,198.18,198.11,2.52862758]
[1753158339118,7.33202816,198.14,198.11,2.52862758]
[1753158339720,7.33202816,198.14,198.08,0.68]
[1753158339721,0.67,198.14,198.08,0.03]
[1753158339918,16.78468397,198.18,198.08,0.03]
[1753158339919,7.33202816,198.16,198.1,7.33202816]
[1753158340345,7.33202816,198.15,198.09,25.65076458]
[1753158340645,7.33202816,198.14,198.09,5.6982104]
[1753158341222,8.00202816,198.13,198.08,0.03]
[1753158341531,12.61353624,198.2,198.09,7.33202816]
[1753158341532,0.67,198.2,198.09,7.33202816]
[1753158341723,7.33202816,198.19,198.11,26.0]
[1753158341922,0.67,198.18,198.11,26.0]
[1753158342237,7.33202816,198.17,198.12,0.65]
[1753158342447,7.33202816,198.14,198.09,0.65]
[1753158342637,7.33202816,198.16,198.1,7.33202816]
[1753158342838,7.33202816,198.15,198.11,5.04770077]
[1753158343032,7.33202816,198.14,198.11,5.04770077]
[1753158343231,5.71592008,198.18,198.08,26.03]
[1753158343435,7.33202816,198.15,198.09,7.98202816]
[1753158343628,7.33202816,198.11,198.08,0.03]
[1753158343931,7.33202816,198.12,198.08,26.03]
[1753158344127,7.33202816,198.12,198.08,26.68]
[1753158344738,7.33202816,198.13,198.09,5.69806771]
[1753158344958,7.33202816,198.13,198.09,5.04806771]
[1753158345145,7.33202816,198.13,198.1,0.65]
[1753158345823,7.33202816,198.11,198.08,31.07844047]
[1753158346057,12.61347055,198.21,198.09,7.33202816]
[1753158346058,7.33202816,198.15,198.09,7.33202816]
[1753158346258,7.33202816,198.16,198.1,7.33202816]
[1753158346625,16.78468397,198.19,198.11,5.69770077]
[1753158346824,7.33202816,198.16,198.11,5.69770077]
[1753158347343,7.33202816,198.16,198.11,0.65]
[1753158347535,0.67,198.15,198.1,26.0]
[1753158347752,7.33202816,198.16,198.1,26.65]
[1753158348052,7.33202816,198.15,198.1,26.65]
[1753158348243,7.33202816,198.14,198.1,26.65]
[1753158348435,7.33202816,198.15,198.11,0.65]
[1753158348837,7.33202816,198.12,198.08,5.07842362]
[1753158349039,0.67,198.15,198.08,5.07842362]
[1753158349250,7.33202816,198.09,198.08,0.03]
[1753158349761,24.78671213,198.09,198.08,0.03]
[1753158349964,7.33202816,198.09,198.08,0.03]
[1753158351758,16.78468397,198.11,198.08,0.03]
[1753158351759,21.83253567,198.11,198.08,0.03]
[1753158351948,8.00202816,198.09,198.08,0.03]
[1753158352462,7.33202816,198.09,198.08,0.03]
[1753158352668,21.83253567,198.11,198.08,0.03]
[1753158352838,7.33202816,198.1,198.08,0.03]
[1753158353034,7.33202816,198.09,198.08,0.03]
[1753158353536,17.45468397,198.13,198.08,0.03]
[1753158353850,7.33202816,198.11,198.08,0.68]
[1753158354851,16.78468397,198.15,198.08,0.68]
[1753158354852,7.33202816,198.1,198.08,0.03]
[1753158355654,7.33202816,198.09,198.08,0.03]
[1753158356453,8.00202816,198.09,198.08,0.03]
[1753158356847,13.05023856,198.09,198.08,0.03]
[1753158357247,24.78671213,198.09,198.08,0.03]
[1753158357858,7.33202816,198.09,198.08,0.03]
[1753158358257,7.33202816,198.1,198.08,0.03]
[1753158358467,7.33202816,198.09,198.08,0.03]
[1753158359150,12.38023856,198.09,198.08,0.03]
[1753158359354,0.67,198.13,198.08,0.03]
[1753158359552,7.33202816,198.1,198.08,0.68]
[1753158359774,7.33202816,198.12,198.09,0.65]
[1753158359990,7.33202816,198.11,198.09,0.65]
[1753158360174,7.33202816,198.1,198.08,0.03]
[1753158360353,24.11671213,198.09,198.08,0.03]
[1753158360556,50.44671213,198.09,198.03,0.2]
[1753158360771,24.11671213,198.04,198.03,0.2]
[1753158360970,66.32619708,198.04,198.03,0.2]
[1753158361276,16.78468397,198.03,198.0,0.03]
[1753158361583,7.33202816,198.02,198.0,0.03]
[1753158361880,16.91468397,198.07,198.0,5.7304406]
[1753158362064,7.33202816,198.04,198.0,5.7303809]
[1753158362375,7.33202816,198.05,198.0,5.7303809]
[1753158362574,16.78468397,198.09,198.01,0.65]
[1753158362882,7.33202816,198.05,198.02,5.04999495]
[1753158363082,7.33202816,198.05,198.02,0.65]
[1753158363263,7.33202816,198.04,198.0,0.03]
[1753158363464,7.33202816,198.04,198.0,5.08044277]
[1753158363657,0.13,198.12,198.02,7.33202816]
[1753158363862,7.33202816,198.08,198.02,7.33202816]
[1753158364083,16.78468397,198.13,198.03,0.65]
[1753158364262,7.33202816,198.08,198.03,0.65]
[1753158364465,21.83195061,198.13,198.03,26.65]
[1753158364664,7.33202816,198.04,198.0,0.03]
[1753158364886,12.38227814,198.01,198.0,0.03]
[1753158365192,29.16696211,198.01,198.0,0.03]
[1753158365380,24.11671213,198.01,198.0,0.03]
[1753158365561,7.33202816,198.01,198.0,0.03]
[1753158365972,24.11671213,198.01,198.0,0.03]
[1753158366770,7.33202816,198.01,198.0,0.03]